Workbook

Sheet P. BDI 1
B1: IMPRIMIR EM PAPEL TIMBRADO DA EMPRESA PROPONENTE
B2: BDI - Bonificações e Despesas Indiretas
B3: Edital : | C3: TP 29/2018
B4: Tomador: | C4: Prefeitura Municipal de Dois Vizinhos - PR
B5: Empreendimento: | C5: Revitalização Vias Urbanas
B6: Local da Obra: | C6: Dois Vizinhos - Pr
B7: Empresa Prop.: | C7: preencher
B8: CNPJ: | C8: preencher
B9: Referencia: | C9: preencher
B11: Identifique o tipo de obra: | C11: 1 | D11: =IF(C11>0,IF(C11<7,,"<--- Insira valor entre 1 e 6"),"<--- Insira valor entre 1 e 6") -> 0
B12: Construção de edifícios: | C12: 1 | D12: Informe a base de cálculo do ISSQN.
B13: Construção de rodovias e ferrovias: | C13: 2 | D13: =IF(D14<>0,0,"( X )") -> 0 | E13: Sobre os serviços.
B14: Construção de redes de abastecimento de água, coleta de esgoto e construções correlatas: | C14: 3 | D14: x | E14: Sobre a mão-de-obra.
B15: Construção e manutenção de estações e redes de distribuição de energia elétrica: | C15: 4 | D15: Informe a ocorrência da DESONERAÇÃO da folha de pagamento. Lei 12844/2013.
B16: Obras portuárias, marítimas e fluviais: | C16: 5 | D16: =IF(D17<>0,0,"( X )") -> 0 | E16: SEM Desoneração.
B17: Fornecimento de materiais e equipamentos: | C17: 6 | D17: x | E17: COM Desoneração.
C19: Intervalo de admissibilidade | H19: Ac | I19: =F21 -> preencher
B20: Item Componente do BDI | C20: 1º Quartil | D20: Médio | E20: 3º Quartil | F20: Valores Propostos | H20: S | I20: =F22 -> preencher
B21: Administração Central | C21: 0.03 | D21: 0.04 | E21: 0.055 | F21: preencher | G21: =IF(F21=0,"",IF(F21<C21,"Atenção, observar os intervalos!",IF(F21>E21,"Atenção, observar os intervalos!",""))) -> Atenção, observar os intervalos! | H21: G | I21: =I20 -> preencher
B22: Seguro e Garantia | C22: 0.008 | D22: 0.008 | E22: 0.01 | F22: preencher | G22: =IF(F22=0,"",IF(F22<C22,"Atenção, observar os intervalos!",IF(F22>E22,"Atenção, observar os intervalos!",""))) -> Atenção, observar os intervalos! | H22: R | I22: =F23 -> preencher
B23: Risco | C23: 0.0097 | D23: 0.0127 | E23: 0.0127 | F23: preencher | G23: =IF(F23=0,"",IF(F23<C23,"Atenção, observar os intervalos!",IF(F23>E23,"Atenção, observar os intervalos!",""))) -> Atenção, observar os intervalos! | H23: DF | I23: preencher
B24: Despesas Financeiras | C24: 0.0059 | D24: 0.0123 | E24: 0.0139 | F24: preencher | G24: =IF(F24=0,"",IF(F24<C24,"Atenção, observar os intervalos!",IF(F24>E24,"Atenção, observar os intervalos!",""))) -> Atenção, observar os intervalos! | H24: L | I24: preencher
B25: Lucro | C25: 0.0616 | D25: 0.074 | E25: 0.0896 | F25: preencher | G25: =IF(F25=0,"",IF(F25<C25,"Atenção, observar os intervalos!",IF(F25>E25,"Atenção, observar os intervalos!",""))) -> Atenção, observar os intervalos! | H25: l1 | I25: preencher
B26: I1: PIS e COFINS | F26: preencher | H26: l2 | I26: preencher
B27: I2: ISSQN (conforme legislação municipal) | F27: preencher | H27: l3 | I27: 0.045
B28: I3: Cont.Prev s/Rec.Bruta (Lei 12844/13 - Desoneração) | F28: 0.045
B30: BDI - SEM Desoneração da folha de pagamento | F30: =ROUND((((1+I19+I21+I22)*(1+I23)*(1+I24))/(1-I25-I26))-1,4) ->  | H30: 1º QUARTIL | I30: MÉDIO | J30: 3º QUARTIL
B31: BDI - COM Desoneração da folha de pagamento | F31: =ROUND((((1+I19+I21+I22)*(1+I23)*(1+I24))/(1-I25-I26-I27))-1,4) ->  | H31: 0.2034 | I31: 0.2212 | J31: 0.25
B33: Declaramos que esta planilha foi elaborada conforme equação para cálculo do percentual do BDI recomendada pelo Acórdão 2622/2013 - TCU, representada pela fórmula abaixo.
B35: BDI - SEM Desoneração = [(1+AC+S+G+R)X(1+DF)X(1+L)/(1-I1-I2)]-1
B36: BDI - COM Desoneração = [(1+AC+S+G+R)X(1+DF)X(1+L)/(1-I1-I2-I3)]-1
B42: Responsável Técnico: | C42: .
B43: Carimbo e Assinatura CREA/CAU: | C43: .
B51: Responsavel Legal: | C51: .
B52: Carimbo e Assinatura | C52: cpf:

Sheet P. BDI 2
B1: IMPRIMIR EM PAPEL TIMBRADO DA EMPRESA PROPONENTE
B2: BDI - Bonificações e Despesas Indiretas
B3: Edital : | C3: ='P. BDI 1'!C3:F3 -> TP 29/2018
B4: Tomador: | C4: Prefeitura Municipal de Dois Vizinhos - PR
B5: Empreendimento: | C5: ASFALTO
B6: Local da Obra: | C6: ='P. BDI 1'!C6:F6 -> Dois Vizinhos - Pr
B7: Empresa Prop.: | C7: ='P. BDI 1'!C7 -> preencher
B8: CNPJ: | C8: ='P. BDI 1'!C8 -> preencher
B9: Referencia: | C9: ='P. BDI 1'!C9 -> preencher
B11: Identifique o tipo de obra: | C11: 2 | D11: =IF(C11>0,IF(C11<7,,"<--- Insira valor entre 1 e 6"),"<--- Insira valor entre 1 e 6") -> 0
B12: Construção de edifícios: | C12: 1 | D12: Informe a base de cálculo do ISSQN.
B13: Construção de rodovias e ferrovias: | C13: 2 | D13: =IF(D14<>0,0,"( X )") -> 0 | E13: Sobre os serviços.
B14: Construção de redes de abastecimento de água, coleta de esgoto e construções correlatas: | C14: 3 | D14: x | E14: Sobre a mão-de-obra.
B15: Construção e manutenção de estações e redes de distribuição de energia elétrica: | C15: 4 | D15: Informe a ocorrência da DESONERAÇÃO da folha de pagamento. Lei 12844/2013.
B16: Obras portuárias, marítimas e fluviais: | C16: 5 | D16: =IF(D17<>0,0,"( X )") -> 0 | E16: SEM Desoneração.
B17: Fornecimento de materiais e equipamentos: | C17: 6 | D17: x | E17: COM Desoneração.
C19: Intervalo de admissibilidade | H19: Ac | I19: =F21 -> preencher
B20: Item Componente do BDI | C20: 1º Quartil | D20: Médio | E20: 3º Quartil | F20: Valores Propostos | H20: S | I20: =F22 -> preencher
B21: Administração Central | C21: 0.038 | D21: 0.0401 | E21: 0.0467 | F21: preencher | G21: =IF(F21=0,"",IF(F21<C21,"Atenção, observar os intervalos!",IF(F21>E21,"Atenção, observar os intervalos!",""))) -> Atenção, observar os intervalos! | H21: G | I21: =I20 -> preencher
B22: Seguro e Garantia | C22: 0.0032 | D22: 0.004 | E22: 0.0074 | F22: preencher | G22: =IF(F22=0,"",IF(F22<C22,"Atenção, observar os intervalos!",IF(F22>E22,"Atenção, observar os intervalos!",""))) -> Atenção, observar os intervalos! | H22: R | I22: =F23 -> preencher
B23: Risco | C23: 0.005 | D23: 0.0056 | E23: 0.0097 | F23: preencher | G23: =IF(F23=0,"",IF(F23<C23,"Atenção, observar os intervalos!",IF(F23>E23,"Atenção, observar os intervalos!",""))) -> Atenção, observar os intervalos! | H23: DF | I23: preencher
B24: Despesas Financeiras | C24: 0.0102 | D24: 0.0111 | E24: 0.0121 | F24: preencher | G24: =IF(F24=0,"",IF(F24<C24,"Atenção, observar os intervalos!",IF(F24>E24,"Atenção, observar os intervalos!",""))) -> Atenção, observar os intervalos! | H24: L | I24: preencher
B25: Lucro | C25: 0.0664 | D25: 0.073 | E25: 0.0869 | F25: preencher | G25: =IF(F25=0,"",IF(F25<C25,"Atenção, observar os intervalos!",IF(F25>E25,"Atenção, observar os intervalos!",""))) -> Atenção, observar os intervalos! | H25: l1 | I25: preencher
B26: I1: PIS e COFINS | F26: preencher | H26: l2 | I26: preencher
B27: I2: ISSQN (conforme legislação municipal) | F27: preencher | H27: l3 | I27: 0.045
B28: I3: Cont.Prev s/Rec.Bruta (Lei 12844/13 - Desoneração) | F28: 0.045
B30: BDI - SEM Desoneração da folha de pagamento | F30: =ROUND((((1+I19+I21+I22)*(1+I23)*(1+I24))/(1-I25-I26))-1,4) ->  | H30: 1º QUARTIL | I30: MÉDIO | J30: 3º QUARTIL
B31: BDI - COM Desoneração da folha de pagamento | F31: =ROUND((((1+I19+I21+I22)*(1+I23)*(1+I24))/(1-I25-I26-I27))-1,4) ->  | H31: 0.2034 | I31: 0.2212 | J31: 0.25
B33: Declaramos que esta planilha foi elaborada conforme equação para cálculo do percentual do BDI recomendada pelo Acórdão 2622/2013 - TCU, representada pela fórmula abaixo.
B35: BDI - SEM Desoneração = [(1+AC+S+G+R)X(1+DF)X(1+L)/(1-I1-I2)]-1
B36: BDI - COM Desoneração = [(1+AC+S+G+R)X(1+DF)X(1+L)/(1-I1-I2-I3)]-1
B41: Responsável Técnico: | C41: ='P. BDI 1'!C42 -> .
B42: Carimbo e Assinatura CREA/CAU: | C42: ='P. BDI 1'!C43 -> .
B50: Responsavel Legal: | C50: ='P. BDI 1'!C51 -> .
B51: Carimbo e Assinatura | C51: ='P. BDI 1'!C52 -> cpf:

Sheet P. BDI 3
B1: IMPRIMIR EM PAPEL TIMBRADO DA EMPRESA PROPONENTE
B2: BDI - Bonificações e Despesas Indiretas
B3: Edital : | C3: ='P. BDI 1'!C3:F3 -> TP 29/2018
B4: Tomador: | C4: Prefeitura Municipal de Dois Vizinhos - PR
B5: Empreendimento: | C5: DRENAGEM PLUVIAL URBANA
B6: Local da Obra: | C6: ='P. BDI 1'!C6:F6 -> Dois Vizinhos - Pr
B7: Empresa Prop.: | C7: ='P. BDI 1'!C7 -> preencher
B8: CNPJ: | C8: ='P. BDI 1'!C8 -> preencher
B9: Referencia: | C9: ='P. BDI 1'!C9 -> preencher
B11: Identifique o tipo de obra: | C11: 3 | D11: =IF(C11>0,IF(C11<7,,"<--- Insira valor entre 1 e 6"),"<--- Insira valor entre 1 e 6") -> 0
B12: Construção de edifícios: | C12: 1 | D12: Informe a base de cálculo do ISSQN.
B13: Construção de rodovias e ferrovias: | C13: 2 | D13: =IF(D14<>0,0,"( X )") -> 0 | E13: Sobre os serviços.
B14: Construção de redes de abastecimento de água, coleta de esgoto e construções correlatas: | C14: 3 | D14: x | E14: Sobre a mão-de-obra.
B15: Construção e manutenção de estações e redes de distribuição de energia elétrica: | C15: 4 | D15: Informe a ocorrência da DESONERAÇÃO da folha de pagamento. Lei 12844/2013.
B16: Obras portuárias, marítimas e fluviais: | C16: 5 | D16: =IF(D17<>0,0,"( X )") -> 0 | E16: SEM Desoneração.
B17: Fornecimento de materiais e equipamentos: | C17: 6 | D17: x | E17: COM Desoneração.
C19: Intervalo de admissibilidade | H19: Ac | I19: =F21 -> preencher
B20: Item Componente do BDI | C20: 1º Quartil | D20: Médio | E20: 3º Quartil | F20: Valores Propostos | H20: S | I20: =F22 -> preencher
B21: Administração Central | C21: 0.0343 | D21: 0.0493 | E21: 0.0671 | F21: preencher | G21: =IF(F21=0,"",IF(F21<C21,"Atenção, observar os intervalos!",IF(F21>E21,"Atenção, observar os intervalos!",""))) -> Atenção, observar os intervalos! | H21: G | I21: =I20 -> preencher
B22: Seguro e Garantia | C22: 0.0028 | D22: 0.0049 | E22: 0.0075 | F22: preencher | G22: =IF(F22=0,"",IF(F22<C22,"Atenção, observar os intervalos!",IF(F22>E22,"Atenção, observar os intervalos!",""))) -> Atenção, observar os intervalos! | H22: R | I22: =F23 -> preencher
B23: Risco | C23: 0.01 | D23: 0.0139 | E23: 0.0174 | F23: preencher | G23: =IF(F23=0,"",IF(F23<C23,"Atenção, observar os intervalos!",IF(F23>E23,"Atenção, observar os intervalos!",""))) -> Atenção, observar os intervalos! | H23: DF | I23: preencher
B24: Despesas Financeiras | C24: 0.0094 | D24: 0.0099 | E24: 0.0117 | F24: preencher | G24: =IF(F24=0,"",IF(F24<C24,"Atenção, observar os intervalos!",IF(F24>E24,"Atenção, observar os intervalos!",""))) -> Atenção, observar os intervalos! | H24: L | I24: preencher
B25: Lucro | C25: 0.0674 | D25: 0.0804 | E25: 0.094 | F25: preencher | G25: =IF(F25=0,"",IF(F25<C25,"Atenção, observar os intervalos!",IF(F25>E25,"Atenção, observar os intervalos!",""))) -> Atenção, observar os intervalos! | H25: l1 | I25: preencher
B26: I1: PIS e COFINS | F26: preencher | H26: l2 | I26: preencher
B27: I2: ISSQN (conforme legislação municipal) | F27: preencher | H27: l3 | I27: 0.045
B28: I3: Cont.Prev s/Rec.Bruta (Lei 12844/13 - Desoneração) | F28: 0.045
B30: BDI - SEM Desoneração da folha de pagamento | F30: =ROUND((((1+I19+I21+I22)*(1+I23)*(1+I24))/(1-I25-I26))-1,4) ->  | H30: 1º QUARTIL | I30: MÉDIO | J30: 3º QUARTIL
B31: BDI - COM Desoneração da folha de pagamento | F31: =ROUND((((1+I19+I21+I22)*(1+I23)*(1+I24))/(1-I25-I26-I27))-1,4) ->  | H31: 0.2034 | I31: 0.2212 | J31: 0.25
B33: Declaramos que esta planilha foi elaborada conforme equação para cálculo do percentual do BDI recomendada pelo Acórdão 2622/2013 - TCU, representada pela fórmula abaixo.
B35: BDI - SEM Desoneração = [(1+AC+S+G+R)X(1+DF)X(1+L)/(1-I1-I2)]-1
B36: BDI - COM Desoneração = [(1+AC+S+G+R)X(1+DF)X(1+L)/(1-I1-I2-I3)]-1
B41: Responsável Técnico: | C41: ='P. BDI 1'!C42 -> .
B42: Carimbo e Assinatura CREA/CAU: | C42: ='P. BDI 1'!C43 -> .
B50: Responsavel Legal: | C50: ='P. BDI 1'!C51 -> .
B51: Carimbo e Assinatura | C51: ='P. BDI 1'!C52 -> cpf:

Sheet Kennedy e Hablich
A1: IMPRIMIR EM PAPEL TIMBRADO DA EMPRESA PROPONENTE
A2: PLANILHA ORÇAMENTARIA
A5: ='P. BDI 1'!B3 -> Edital : | C5: ='P. BDI 1'!C3:F3 -> TP 29/2018 | D5: Área: | F5: =F31+F67+F69 -> 1020.6 | H5: m²
A6: ='P. BDI 1'!B4 -> Tomador: | C6: ='P. BDI 1'!C4:F4 -> Prefeitura Municipal de Dois Vizinhos - PR | D6: Custo R$/m2 | F6: =H97/F5 -> 
A7: ='P. BDI 1'!B5 -> Empreendimento: | C7: ='P. BDI 1'!C5:F5 -> Revitalização Vias Urbanas
A8: ='P. BDI 1'!B6 -> Local da Obra: | C8: Av. Presidente Kennedy e Rua Firmo Hablich
A9: ='P. BDI 1'!B7 -> Empresa Prop.: | C9: ='P. BDI 1'!C7:F7 -> preencher
A10: ='P. BDI 1'!B8 -> CNPJ: | C10: ='P. BDI 1'!C8:F8 -> preencher
A11: ='P. BDI 1'!B9 -> Referencia: | C11: ='P. BDI 1'!C9:F9 -> preencher | E11: LOTE 1
A12: BDI
A14: ITEM . | B14: REF. | C14: DESCRIÇÃO | D14: UN | E14: VALOR UNIT. | F14: QUANT. | G14: VALOR UNIT C/ BDI | H14: TOTAL
C16: AVENIDA PRESIDENTE KENNEDY | G16: TOTAL: | H16: =H18+H25+H36+H43+H51 -> 
J17: =ROUND(E17*F17,2) -> 0
A18: 1 | C18: SERVIÇOS PRELIMINARES | D18: BDI | E18: =E25 ->  | G18: TOTAL DO GRUPO: | H18: =SUM(H19:H24) -> 
A20: 1.1 | B20: 74209/001 | C20: PLACA DE OBRA (PARA CONSTRUCAO CIVIL) EM CHAPA GALVANIZADA *N. 22*, DE *2,0 X 1,125* M | D20: M2 | F20: 2.25 | G20: =ROUND((E20*$E$18)+E20,2) ->  | H20: =ROUND(G20*F20,2) ->  | J20: =ROUND(E20*F20,2) -> 0
A21: 1.2 | B21: 97627 | C21: DEMOLIÇÃO DE PILARES (POSTES) EM CONCRETO ARMADO, DE FORMA MECANIZADA COM MARTELETE, SEM REAPROVEITAMENTO. | D21: M3 | F21: =ROUND(5*0.35*0.35*2.5,2) -> 1.53 | G21: =ROUND((E21*$E$18)+E21,2) ->  | H21: =ROUND(G21*F21,2) ->  | J21: =ROUND(E21*F21,2) -> 0
A22: 1.3 | B22: 97636 | C22: DEMOLIÇÃO PARCIAL DE PAVIMENTO ASFÁLTICO, DE FORMA MECANIZADA, SEM REAPROVEITAMENTO. AF_12/2017 | D22: M2 | F22: =8.5+14+4.6+6.15+12+6.7+22.8+13.85 -> 88.6 | G22: =ROUND((E22*$E$18)+E22,2) ->  | H22: =ROUND(G22*F22,2) ->  | J22: 0
A23: 1.4 | B23: 95875 | C23: TRANSPORTE COM CAMINHÃO BASCULANTE DE 10 M3, EM VIA URBANA PAVIMENTADA | D23: M3XKM | F23: =F22*0.2*8 -> 141.76 | G23: =ROUND((E23*$E$18)+E23,2) ->  | J23: 0
J24: 0
A25: 2 | C25: PAVIMENTAÇÃO | D25: BDI | E25: ='P. BDI 2'!F31 ->  | G25: TOTAL DO GRUPO: | H25: =SUM(H26:H35) -> 
J26: 0
A27: 2.1 | B27: 90100 | C27: ESCAVAÇÃO MECANIZADA COM RETROESCAVADEIRA | D27: M3 | F27: =F30+F29 -> 44.8 | G27: =ROUND((E27*$E$25)+E27,2) ->  | H27: =ROUND(G27*F27,2) ->  | J27: 0
A28: 2.2 | B28: 72961 | C28: REGULARIZACAO E COMPACTACAO DE SUBLEITO | D28: M2 | F28: =F31 -> 108.6 | G28: =ROUND((E28*$E$25)+E28,2) ->  | H28: =ROUND(G28*F28,2) ->  | J28: 0
A29: 2.3 | B29: 96400 | C29: EXECUÇÃO E COMPACTAÇÃO DE BASE E OU SUB BASE COM MACADAME SECO/RACHÃO | D29: M3 | F29: =(F22+9)*0.25+(12*0.8*0.3) -> 27.28 | J29: 0
A30: 2.4 | B30: 96396 | C30: EXECUÇÃO E COMPACTAÇÃO DE BASE E OU SUB BASE COM BRITA GRADUADA SIMPLES | D30: M3 | F30: =(F22+9)*0.15+(12*0.8*0.3) -> 17.52 | H30: =ROUND(G30*F30,2) ->  | J30: 0
A31: 2.5 | B31: 96401 | C31: EXECUÇÃO DE IMPRIMAÇÃO COM ASFALTO DILUÍDO CM-30. AF_09/2017 | D31: M2 | F31: =F22+20 -> 108.6 | H31: =ROUND(G31*F31,2) ->  | J31: 0
A32: 2.6 | B32: 95997 | C32: CONSTRUÇÃO DE PAVIMENTO COM APLICAÇÃO DE CONCRETO BETUMINOSO USINADO A QUENTE (CBUQ), CAMADA DE ROLAMENTO, COM ESPESSURA DE 6,0 CM - EXCLUSIVE TRANSPORTE. AF_03/2017 | D32: M3 | F32: =ROUND(F31*0.06,2) -> 6.52 | H32: =ROUND(G32*F32,2) ->  | J32: 0
A33: 2.7 | B33: 95875 | C33: TRANSPORTE COM CAMINHÃO BASCULANTE DE 10 M3, EM VIA URBANA PAVIMENTADA | D33: M3XKM | F33: =(F27+F32)*8 -> 410.56 | H33: =ROUND(G33*F33,2) ->  | J33: 0
A34: 2.8 | B34: 72947 | C34: SINALIZACAO HORIZONTAL COM TINTA RETRORREFLETIVA A BASE DE RESINA ACRILICA COM MICROESFERAS DE VIDRO | D34: M2 | F34: =4.8+(1.6*28)+(80*0.2) -> 65.6 | H34: =ROUND(G34*F34,2) ->  | J34: 0
J35: 0
A36: 3 | C36: DRENAGEM PLUVIAL | D36: BDI | E36: ='P. BDI 3'!F31 ->  | G36: TOTAL DO GRUPO: | H36: =SUM(H37:H42) -> 
J37: 0
A38: 3.1 | B38: 2 S 04 960 02 DNIT 11/2016 | C38: BOCA DE LOBO | D38: UN | F38: 2 | G38: =ROUND((E38*$E$36)+E38,2) ->  | H38: =ROUND(G38*F38,2) ->  | J38: 0
A39: 3.2 | B39: 92221 | C39: TUBO DE CONCRETO PARA REDES COLETORAS DE ÁGUAS PLUVIAIS, DIÂMETRO DE 600 MM, JUNTA RÍGIDA, FORNECIMENTO E ASSENTAMENTO. | D39: M | F39: 12 | G39: =ROUND((E39*$E$36)+E39,2) ->  | H39: =ROUND(G39*F39,2) ->  | J39: 0
A40: 3.3 | B40: 2 S 04 962 02 DNIT 11/2016 | C40: CAIXA DE LIGAÇÃO E PASSAGEM | D40: UN | F40: 2 | H40: =ROUND(G40*F40,2) ->  | J40: 0
A41: 3.4 | B41: 94265 | C41: GUIA (MEIO-FIO) CONCRETO, MOLDADA IN LOCO EM TRECHO RETO COM EXTRUSORA, 14 CM BASE X 30 CM ALTURA. AF_06/2016 | D41: M | F41: 103 | H41: =ROUND(G41*F41,2) ->  | J41: 0
J42: 0
A43: 4 | C43: MURO / MURETA | D43: BDI | E43: ='P. BDI 1'!F31 ->  | G43: TOTAL DO GRUPO: | H43: =SUM(H44:H49) -> 
J44: 0
A45: 4.1 | B45: 97622 | C45: DEMOLIÇÃO DE ALVENARIA | D45: M3 | F45: =10*0.2 -> 2 | G45: =ROUND((E45*$E$43)+E45,2) ->  | H45: =ROUND(G45*F45,2) ->  | J45: 0
A46: 4.2 | B46: 95956 | C46: EXECUÇÃO DE ESTRUTURAS DE CONCRETO ARMADO,FCK = 25 MPA. | D46: M3 | F46: =0.15*0.2*7 -> 0.21 | G46: =ROUND((E46*$E$43)+E46,2) ->  | J46: 0
A47: 4.3 | B47: 87478 | C47: ALVENARIA DE VEDAÇÃO DE BLOCOS CERÂMICOS FURADOS (ESPESSURA 9CM) E ARGAMASSA DE ASSENTAMENTO COM PREPARO MANUAL. AF_06/2014 | D47: M2 | F47: 6 | J47: 0
A48: 4.4 | B48: 87879 | C48: CHAPISCO APLICADO SOMENTE EM PILARES E VIGAS DAS PAREDES INTERNAS, COM COLHER DE PEDREIRO. ARGAMASSA TRAÇO 1:3 | D48: M2 | F48: =F47*2 -> 12 | J48: 0
A49: 4.5 | B49: 87532 | C49: EMBOÇO, PARA RECEBIMENTO DE CERÂMICA, EM ARGAMASSA TRAÇO 1:2:8, PREPARO MANUAL, APLICADO MANUALMENTE EM FACES , ESPESSURA DE 20MM, COM EXECUÇÃO DE TALISCAS. AF_06/2014 | D49: M2 | F49: =F48 -> 12 | J49: 0
J50: 0
A51: 5 | C51: RAMPAS ACESSIVEIS | D51: BDI | E51: =E43 ->  | G51: TOTAL DO GRUPO: | H51: =SUM(H52:H58) -> 
J52: 0
A53: 5.1 | B53: 96995 | C53: REGULARIZACAO E COMPACTACAO MANUAL DE TERRENO COM SOQUETE | D53: M3 | F53: =F57*0.05 -> 0.36 | G53: =ROUND((E53*$E$51)+E53,2) ->  | H53: =ROUND(G53*F53,2) ->  | J53: =ROUND(F53*E53,2) -> 0
A54: 5.2 | B54: 4721 | C54: LASTRO DE PEDRA BRITADA N. 1 (9,5 a 19 MM) ESPESSURA 5 CM | D54: M3 | F54: =F57*0.05 -> 0.36 | G54: =ROUND((E54*$E$51)+E54,2) ->  | H54: =ROUND(G54*F54,2) ->  | J54: =ROUND(F54*E54,2) -> 0
A55: 5.3 | B55: 93679 alt. | C55: EXECUÇÃO DE PAVIMENTO EM PISO INTERTRAVADO, GUIA TATIL OU ALERTA, COLORIDO, INCL TRAVAMENTO COM AREIA, INCLUSO COLCHAO DE PÓ DE PEDRA 5 CM E COMPACTACAO COM PLACA VIBRATORIA, COM BLOCO DE 20 X 20 CM, ESPESSURA 6 CM. | D55: M2 | F55: =0.55*4 -> 2.2 | G55: =ROUND((E55*$E$51)+E55,2) ->  | H55: =ROUND(G55*F55,2) ->  | J55: =ROUND(F55*E55,2) -> 0
A56: 5.4 | B56: 96536 | C56: FORMA TABUA P/ CONCRETO C/ REAPROVEITAMENTO INCLUSIVE GRAVATEAMENTO | D56: M2 | F56: =0.87*2 -> 1.74 | G56: =ROUND((E56*$E$51)+E56,2) ->  | H56: =ROUND(G56*F56,2) ->  | J56: =ROUND(F56*E56,2) -> 0
A57: 5.5 | B57: 68325 | C57: PISO EM CONCRETO 20 MPA PREPARO MECANICO, ESPESSURA 7CM, DESEMPENADO | D57: M2 | F57: =1.8*4 -> 7.2 | G57: =ROUND((E57*$E$51)+E57,2) ->  | H57: =ROUND(G57*F57,2) ->  | J57: =ROUND(F57*E57,2) -> 0
J58: 0
C59: RUA FIRMO HABLICH | G59: TOTAL: | H59: =H61+H75+H87 ->  | J59: 0
J60: 0
A61: 6 | C61: PAVIMENTAÇÃO | D61: BDI | E61: =E25 ->  | G61: TOTAL DO GRUPO: | H61: =SUM(H62:H74) -> 
A63: 6.1 | B63: 90100 | C63: ESCAVAÇÃO MECANIZADA COM RETROESCAVADEIRA | D63: M3 | F63: =F66+F65 -> 52 | G63: =ROUND((E63*$E$61)+E63,2) ->  | H63: =ROUND(G63*F63,2) ->  | J63: =ROUND(E63*F63,2) -> 0
A64: 6.2 | B64: 72961 | C64: REGULARIZACAO E COMPACTACAO DE SUBLEITO | D64: M2 | F64: 130 | G64: =ROUND((E64*$E$61)+E64,2) ->  | J64: =ROUND(E64*F64,2) -> 0
A65: 6.3 | B65: 96400 | C65: EXECUÇÃO E COMPACTAÇÃO DE BASE E OU SUB BASE COM MACADAME SECO/RACHÃO | D65: M3 | F65: =(F64)*0.25 -> 32.5 | J65: 0
A66: 6.4 | B66: 96396 | C66: EXECUÇÃO E COMPACTAÇÃO DE BASE E OU SUB BASE COM BRITA GRADUADA SIMPLES | D66: M3 | F66: =(F64)*0.15 -> 19.5 | J66: 0
A67: 6.5 | B67: 96401 | C67: EXECUÇÃO DE IMPRIMAÇÃO COM ASFALTO DILUÍDO CM-30. AF_09/2017 | D67: M2 | F67: =F64 -> 130 | J67: 0
A68: 6.6 | B68: 73806 | C68: LIMPEZA DE SUPERFICIES COM JATO DE ALTA PRESSAO DE AR E AGUA | D68: M2 | F68: =F69 -> 782 | J68: 0
A69: 6.7 | B69: 72942 | C69: PINTURA DE LIGACAO COM EMULSAO RR-1C | D69: M2 | F69: =612+300-F67 -> 782 | J69: 0
A70: 6.8 | B70: 96001 | C70: FRESAGEM DE PAVIMENTO ASFÁLTICO (PROFUNDIDADE 5,0 CM) | D70: M2 | F70: 300 | J70: 0
A71: 6.9 | B71: 95997 | C71: CONSTRUÇÃO DE PAVIMENTO COM APLICAÇÃO DE CONCRETO BETUMINOSO USINADO A QUENTE (CBUQ), CAMADA DE ROLAMENTO, COM ESPESSURA DE 6,0 CM | D71: M3 | F71: =(F67+F69)*0.06 -> 54.72 | H71: =ROUND(G71*F71,2) ->  | J71: 0
A72: 6.10 | B72: 95875 | C72: TRANSPORTE COM CAMINHÃO BASCULANTE DE 10 M3, EM VIA URBANA PAVIMENTADA | D72: M3XKM | F72: =(F63+F71)*8 -> 853.76 | H72: =ROUND(G72*F72,2) ->  | J72: 0
A73: 6.11 | B73: 72947 | C73: SINALIZACAO HORIZONTAL COM TINTA RETRORREFLETIVA A BASE DE RESINA ACRILICA COM MICROESFERAS DE VIDRO | D73: M2 | F73: =(1.6*20)+(0.2*50) -> 42 | J73: 0
J74: 0
A75: 7 | C75: DRENAGEM PLUVIAL | D75: BDI | E75: =E36 ->  | G75: TOTAL DO GRUPO: | H75: =SUM(H76:H85) -> 
J76: 0
A77: 7.1 | B77: 2 S 04 960 02 DNIT 11/2016 | C77: BOCA DE LOBO | D77: UN | F77: 4 | G77: =ROUND((E77*$E$75)+E77,2) ->  | H77: =ROUND(G77*F77,2) ->  | J77: 0
A78: 7.2 | B78: 92210 | C78: TUBO DE CONCRETO PARA REDES COLETORAS DE ÁGUAS PLUVIAIS, DIÂMETRO DE 400 MM, JUNTA RÍGIDA. - FORNECIMENTO E ASSENTAMENTO. AF_12/2015 | D78: M | F78: =(15.5+14+16) -> 45.5 | G78: =ROUND((E78*$E$75)+E78,2) ->  | J78: 0
A79: 7.3 | B79: 92221 | C79: TUBO DE CONCRETO PARA REDES COLETORAS DE ÁGUAS PLUVIAIS, DIÂMETRO DE 600 MM, JUNTA RÍGIDA FORNECIMENTO E ASSENTAMENTO. | D79: M | F79: 7.5 | J79: 0
A80: 7.4 | B80: 90100 | C80: ESCAVAÇÃO MECANIZADA COM RETROESCAVADEIRA | D80: M3 | F80: =(F78+F79)*0.8*1.4 -> 59.36 | J80: 0
A81: 7.5 | B81: 95875 | C81: TRANSPORTE COM CAMINHÃO BASCULANTE DE 10 M3, EM VIA URBANA PAVIMENTADA | D81: M3XKM | F81: =(F80*8)-F83 -> 466.93 | J81: 0
A82: 7.6 | B82: 93379 | C82: REATERRO MECANIZADO DE VALA COM RETROESCAVADEIRA, COMPACTADO | D82: M3 | F82: =(F78+F79)*0.8*0.6 -> 25.44 | J82: 0
A83: 7.7 | B83: 96396 | C83: EXECUÇÃO E COMPACTAÇÃO DE BASE E OU SUB BASE COM BRITA GRADUADA SIMPLES | D83: M3 | F83: =(F84)*0.15 -> 7.95 | J83: 0
A84: 7.8 | B84: 96401 | C84: EXECUÇÃO DE IMPRIMAÇÃO COM ASFALTO DILUÍDO CM-30. AF_09/2017 | D84: M2 | F84: =(F79+F78)*1 -> 53 | J84: 0
A85: 7.9 | B85: 94265 | C85: GUIA (MEIO-FIO) CONCRETO, MOLDADA IN LOCO EM TRECHO RETO COM EXTRUSORA, 14 CM BASE X 30 CM ALTURA. AF_06/2016 | D85: M | F85: 10 | J85: 0
A87: 8 | C87: RAMPAS ACESSIVEIS | D87: BDI | E87: =E51 ->  | G87: TOTAL DO GRUPO: | H87: =SUM(H88:H93) ->  | J87: =ROUND(E87*F87,2) -> 
J88: 0
A89: 8.1 | B89: 96995 | C89: REGULARIZACAO E COMPACTACAO MANUAL DE TERRENO COM SOQUETE | D89: M3 | F89: =F93*0.05 -> 0.36 | G89: =ROUND((E89*$E$87)+E89,2) ->  | H89: =ROUND(G89*F89,2) ->  | J89: =ROUND(F89*E89,2) -> 0
A90: 8.2 | B90: 4721 | C90: LASTRO DE PEDRA BRITADA N. 1 (9,5 a 19 MM) ESPESSURA 5 CM | D90: M3 | F90: =F93*0.05 -> 0.36 | G90: =ROUND((E90*$E$87)+E90,2) ->  | H90: =ROUND(G90*F90,2) ->  | J90: =ROUND(F90*E90,2) -> 0
A91: 8.3 | B91: 93679 alt. | C91: EXECUÇÃO DE PAVIMENTO EM PISO INTERTRAVADO, GUIA TATIL OU ALERTA, COLORIDO, INCL TRAVAMENTO COM AREIA, INCLUSO COLCHAO DE PÓ DE PEDRA 5 CM E COMPACTACAO COM PLACA VIBRATORIA, COM BLOCO DE 20 X 20 CM, ESPESSURA 6 CM. | D91: M2 | F91: =0.55*4 -> 2.2 | G91: =ROUND((E91*$E$87)+E91,2) ->  | H91: =ROUND(G91*F91,2) ->  | J91: =ROUND(F91*E91,2) -> 0
A92: 8.4 | B92: 96536 | C92: FORMA TABUA P/ CONCRETO C/ REAPROVEITAMENTO INCLUSIVE GRAVATEAMENTO | D92: M2 | F92: =0.87*2 -> 1.74 | G92: =ROUND((E92*$E$87)+E92,2) ->  | H92: =ROUND(G92*F92,2) ->  | J92: =ROUND(F92*E92,2) -> 0
A93: 8.5 | B93: 68325 | C93: PISO EM CONCRETO 20 MPA PREPARO MECANICO, ESPESSURA 7CM, DESEMPENADO | D93: M2 | F93: =1.8*4 -> 7.2 | G93: =ROUND((E93*$E$87)+E93,2) ->  | H93: =ROUND(G93*F93,2) ->  | J93: =ROUND(F93*E93,2) -> 0
A95: VALOR TOTAL DA OBRA : | H95: =SUM(J19:J94) -> 
A96: BDI : | H96: =H97-H95 -> 
A97: VALOR TOTAL DA OBRA COM BDI: | H97: =H18+H51+H25+H36+H43+H61+H75+H87 -> 
D106: Responsável Técnico: | E106: ='P. BDI 1'!C42 -> .
D107: Carimbo e Assinatura CREA/CAU: | E107: ='P. BDI 1'!C43 -> .
D120: Responsavel Legal: | E120: ='P. BDI 1'!C51 -> .
D121: Carimbo e Assinatura | E121: ='P. BDI 1'!C52 -> cpf:

Sheet QCI (hidden)
A1: IMPRIMIR EM PAPEL TIMBRADO DA EMPRESA PROPONENTE
A2: QUADRO DE COMPOSIÇÃO DE INVESTIMENTO
A8: ='P. BDI 1'!B3 -> Edital : | C8: ='P. BDI 1'!C3:F3 -> TP 29/2018 | D8: Area Total (m2): | F8: ='Kennedy e Hablich'!F67+'Kennedy e Hablich'!F69+'Kennedy e Hablich'!F31 -> 1020.6
A9: ='P. BDI 1'!B4 -> Tomador: | C9: ='P. BDI 1'!C4:F4 -> Prefeitura Municipal de Dois Vizinhos - PR | D9: Valor Tot. c/ BDI: | F9: =H34 -> 
A10: ='P. BDI 1'!B5 -> Empreendimento: | C10: ='P. BDI 1'!C5:F5 -> Revitalização Vias Urbanas | D10: Custo R$/m2 | F10: =F9/F8 -> 
A11: ='P. BDI 1'!B6 -> Local da Obra: | C11: =C26 -> AVENIDA PRESIDENTE KENNEDY E RUA FIRMO HABLICH
A12: ='P. BDI 1'!B7 -> Empresa Prop.: | C12: ='P. BDI 1'!C7:F7 -> preencher
A13: ='P. BDI 1'!B8 -> CNPJ: | C13: ='P. BDI 1'!C8:F8 -> preencher
A14: ='P. BDI 1'!B9 -> Referencia: | C14: ='P. BDI 1'!C9:F9 -> preencher | E14: LOTE 1
B25: LOTE | C25: DESCRIÇÃO | D25: % DO GRUPO | F25: VALOR DO GRUPO: | H25: TOTAL ACUM.
B26: 1 | C26: AVENIDA PRESIDENTE KENNEDY E RUA FIRMO HABLICH | D26: =F26/$H$34 ->  | F26: ='Kennedy e Hablich'!H97 ->  | H26: =F26 -> 
B32: VALOR TOTAL DA OBRA : | H32: ='Kennedy e Hablich'!H95 -> 
B33: BDI : | H33: ='Kennedy e Hablich'!H96 -> 
B34: VALOR TOTAL DA OBRA COM BDI: | H34: =SUM(F26:G31) -> 
D46: Responsável Técnico: | E46: ='P. BDI 1'!C42 -> .
D47: Carimbo e Assinatura CREA/CAU: | E47: ='P. BDI 1'!C43 -> .
D58: Responsavel Legal:

Sheet CRON
A1: IMPRIMIR EM PAPEL TIMBRADO DA EMPRESA PROPONENTE
A2: CRONOGRAMA FÍSICO-FINANCEIRO
A5: ='P. BDI 1'!B3 -> Edital : | C5: ='P. BDI 1'!C3:F3 -> TP 29/2018 | D5: Area: | F5: =QCI!F8 -> 1020.6
A6: ='P. BDI 1'!B4 -> Tomador: | C6: ='P. BDI 1'!C4:F4 -> Prefeitura Municipal de Dois Vizinhos - PR | D6: Valor Tot. c/ BDI: | F6: =K22 -> 
A7: ='P. BDI 1'!B5 -> Empreendimento: | C7: ='P. BDI 1'!C5:F5 -> Revitalização Vias Urbanas | D7: Custo R$/m2 | F7: =F6/F5 -> 
A8: ='P. BDI 1'!B6 -> Local da Obra: | C8: =QCI!C11 -> AVENIDA PRESIDENTE KENNEDY E RUA FIRMO HABLICH
A9: ='P. BDI 1'!B7 -> Empresa Prop.: | C9: ='P. BDI 1'!C7:F7 -> preencher
A10: ='P. BDI 1'!B8 -> CNPJ: | C10: ='P. BDI 1'!C8:F8 -> preencher | F10: LOTE 1
A11: ='P. BDI 1'!B9 -> Referencia: | C11: ='P. BDI 1'!C9:F9 -> preencher
B15: LOTE | C15: DESCRIÇÃO | E15: VALOR DO GRUPO | G15: MÊS °1 | H15: MÊS °2 | I15: MÊS °3 | J15: MÊS °4 | K15: % TOTAL
B16: =QCI!B26 -> 1 | C16: =QCI!C26 -> AVENIDA PRESIDENTE KENNEDY E RUA FIRMO HABLICH | E16: =QCI!F26 ->  | G16: 0.9 | H16: 0.1 | K16: =SUM(G16:J16) -> 1
B22: TOTAL: | G22: =G17*E17+G16*E16+G19*E19+G20*E20+G21*E21 ->  | H22: =H17*E17+H16*E16+H19*E19+H20*E20+H21*E21 ->  | I22: =I17*E17+I16*E16+I19*E19+I20*E20+I21*E21 ->  | J22: =E16*J16 ->  | K22: =SUM(G22:J22) -> 
F33: Responsável Técnico: | G33: ='P. BDI 1'!C42 -> .
F34: Carimbo e Assinatura CREA/CAU: | G34: ='P. BDI 1'!C43 -> .
F46: Responsavel Legal: | G46: ='P. BDI 1'!C51 -> .
F47: Carimbo e Assinatura | G47: ='P. BDI 1'!C52 -> cpf:
